bitfinex/quotes_SOLUSD_20240620
["timestamp","ask_amount","ask_price","bid_price","bid_amount"]
[1718844441212,0.34,135.23,135.17,15.9099]
[1718844441412,20.0,135.28,135.17,15.9099]
[1718844441730,0.17,135.26,135.17,15.9099]
[1718844441911,20.0,135.28,135.18,6.63]
[1718844442117,18.484,135.26,135.14,22.1731]
[1718844442428,7.3944,135.24,135.14,22.1731]
[1718844442730,7.3956,135.22,135.13,20.0]
[1718844442917,7.396,135.21,135.12,20.0]
[1718844443118,0.51,135.2,135.11,22.1731]
[1718844443435,0.17,135.19,135.11,22.1731]
[1718844444130,16.405,135.22,135.11,22.1731]
[1718844444335,0.17,135.21,135.11,22.1731]
[1718844444736,0.17,135.21,135.12,0.51]
[1718844445830,0.17,135.21,135.07,16.405]
[1718844445831,0.17,135.17,135.08,15.1349]
[1718844446129,0.51,135.17,135.08,15.1349]
[1718844446334,20.51,135.17,135.08,15.1349]
[1718844446530,6.0939,135.16,135.07,6.3776]
[1718844446752,0.34,135.15,135.05,16.5955]
[1718844447733,0.17,135.13,135.04,6.2496]
[1718844447941,0.34,135.13,135.04,6.2496]
[1718844448314,15.6565,135.14,135.04,6.2496]
[1718844448515,15.4865,135.14,135.04,6.2496]
[1718844448927,15.3165,135.14,135.04,6.2496]
[1718844449920,0.34,135.13,135.04,6.2496]
[1718844450120,0.17,135.12,135.04,6.2496]
[1718844451314,15.3165,135.14,135.04,6.2496]
[1718844451515,6.0939,135.16,135.06,21.9]
[1718844451726,20.0,135.15,135.04,6.2496]
[1718844451937,7.57,135.14,135.04,28.1496]
[1718844452137,7.4005,135.13,135.04,28.1496]
[1718844452327,7.4011,135.12,135.04,6.2496]
[1718844452527,0.17,135.11,135.04,6.2496]
[1718844452939,0.34,135.11,135.04,6.2496]
[1718844453139,0.34,135.11,135.02,16.3084]
[1718844453342,0.17,135.1,135.02,16.3084]
[1718844453541,7.4208,135.12,135.02,16.3084]
[1718844453741,0.17,135.13,135.02,16.3084]
[1718844454133,38.4982,135.15,135.02,16.3084]
[1718844454332,7.4012,135.12,135.02,16.3084]
[1718844454639,7.4009,135.12,135.02,16.3084]
[1718844454940,7.4005,135.13,135.02,16.3084]
[1718844455143,20.0,135.15,135.02,16.3084]
[1718844455440,20.0,135.15,135.04,21.9]
[1718844455843,20.0,135.15,135.04,21.4]
[1718844456038,27.3995,135.15,135.04,21.4]
[1718844456361,20.0,135.15,135.04,21.4]
[1718844456730,27.3993,135.15,135.04,21.4]
[1718844456924,7.3998,135.14,135.04,21.4]
[1718844457140,20.0,135.15,135.04,21.4]
[1718844457343,20.0,135.15,135.02,16.3084]
[1718844457544,7.4005,135.13,135.02,16.3084]
[1718844457747,0.34,135.12,135.02,16.3084]
[1718844459462,16.6935,135.11,135.02,16.3084]
[1718844459750,0.17,135.1,135.01,6.6001]
[1718844460057,7.4041,135.06,134.97,16.5486]
[1718844460365,7.4046,135.05,134.97,16.5486]
[1718844460538,7.7446,135.05,134.97,16.5486]
[1718844460848,0.34,135.05,134.97,16.5486]
[1718844461854,0.17,135.04,134.97,16.5486]
[1718844462039,0.34,135.04,134.97,16.5486]
[1718844462243,0.17,135.03,134.97,16.5486]
[1718844462942,0.17,135.05,134.97,16.5486]
[1718844463142,46.6681,135.09,134.97,38.4486]
[1718844463143,6.2607,135.09,134.97,38.4486]
[1718844463329,20.0,135.1,134.97,38.4486]
[1718844463330,20.0,135.08,134.97,38.4486]
[1718844463532,20.0,135.08,134.97,16.5486]
[1718844463946,20.0,135.09,134.97,16.5486]
[1718844464252,20.0,135.1,134.97,16.5486]
[1718844464439,27.4022,135.1,134.97,16.5486]
[1718844464746,0.17,135.09,134.97,16.5486]
[1718844464931,6.6395,135.12,134.98,0.34]
[1718844465130,7.67847555,135.16,135.0,0.17]
[1718844465131,7.4,135.14,135.0,0.17]
[1718844465351,23.8075,135.15,135.01,15.4073]
[1718844465849,16.4081,135.15,135.01,15.4073]
[1718844466235,7.4013,135.11,135.01,15.4073]
[1718844466437,7.4011,135.12,135.01,15.4073]
[1718844466639,16.4081,135.15,135.01,15.4073]
[1718844466834,6.3522,135.16,135.03,0.17]
[1718844467154,20.0,135.15,135.03,0.68]
[1718844467452,15.348,135.19,135.04,15.5091]
[1718844467641,7.3986,135.16,135.05,20.0]
[1718844468358,20.0,135.15,135.04,15.5091]
[1718844468741,27.3994,135.15,135.04,15.5091]
[1718844469244,20.0,135.15,135.04,15.5091]
[1718844469449,27.3995,135.15,135.04,15.5091]
[1718844469652,20.0,135.15,135.04,15.5091]
[1718844469952,0.17,135.16,135.04,15.5091]
[1718844470149,27.3978,135.18,135.05,6.4985]
[1718844470455,20.0,135.18,135.05,6.4985]
[1718844470647,38.4939,135.18,135.05,6.3285]
[1718844470840,20.0,135.18,135.05,6.3285]
[1718844471250,27.3975,135.18,135.05,6.3285]
[1718844471560,7.7381,135.17,135.06,0.34]
[1718844471853,0.34,135.17,135.05,6.3285]
[1718844472044,0.17,135.16,135.05,6.3285]
[1718844472439,0.17,135.15,135.05,6.3285]
[1718844472640,7.7396,135.15,135.05,6.3285]
[1718844472852,0.17,135.14,135.05,6.3285]
[1718844474148,7.4011,135.12,135.05,6.3285]
[1718844474362,7.5704,135.13,135.05,6.3285]
[1718844474566,0.17,135.11,135.05,6.3285]
[1718844476659,0.34,135.11,135.05,6.3285]
[1718844476835,7.7415,135.11,135.05,6.3285]
[1718844477041,0.34,135.1,135.05,6.3285]
[1718844477743,0.34,135.1,135.04,15.5091]
[1718844477744,7.4025,135.09,135.04,15.5091]
[1718844478062,0.51,135.08,135.04,15.5091]
[1718844478363,27.9131,135.08,135.04,15.5091]
[1718844478566,0.34,135.07,135.02,6.6587]
[1718844478858,7.7436,135.07,135.02,6.6587]
[1718844479063,0.34,135.07,135.02,6.6587]
[1718844480250,27.7432,135.08,135.02,6.6587]
[1718844480251,20.34,135.08,135.02,6.6587]
[1718844480453,0.17,135.08,134.98,22.5047]
[1718844480655,7.4058,135.03,134.98,22.5047]
[1718844480858,0.17,135.02,134.92,22.2745]
[1718844481163,0.34,135.02,134.92,22.2745]
[1718844481362,7.4075,135.0,134.92,22.2745]
[1718844481569,0.68,134.99,134.92,22.2745]
[1718844481866,0.51,134.99,134.92,22.2745]
[1718844482551,0.17,134.98,134.92,22.2745]
[1718844482865,0.51,134.99,134.92,22.2745]
[1718844482866,0.18,134.99,134.92,22.2745]
[1718844483377,7.4091,134.97,134.92,22.2745]
[1718844483663,0.18,134.99,134.89,21.9941]
[1718844483840,7.409,134.97,134.89,21.9941]
[1718844484050,7.58,134.96,134.89,21.9941]
[1718844484260,0.17,134.96,134.89,21.9941]
[1718844484449,7.4102,134.95,134.89,21.9941]
[1718844484646,7.5809,134.94,134.85,22.1463]
[1718844484856,7.4109,134.94,134.85,22.1463]
[1718844485052,0.17,134.93,134.85,22.1463]
[1718844485252,20.17,134.96,134.85,22.1463]
[1718844485569,0.51,134.95,134.85,22.1463]
[1718844485747,0.17,134.94,134.85,22.1463]
[1718844486153,27.4097,134.96,134.85,22.1463]
[1718844486649,0.68,134.95,134.85,22.1463]
[1718844487144,0.17,134.95,134.85,22.1463]
[1718844487568,0.17,134.94,134.85,22.1463]
[1718844487752,0.51,134.94,134.85,22.1463]
[1718844487954,0.17,134.93,134.85,22.1463]
[1718844488172,20.17,134.93,134.85,22.1463]
[1718844488379,0.17,134.93,134.85,22.1463]
[1718844488662,20.17,134.93,134.85,22.1463]
[1718844489059,20.0,134.93,134.85,22.1463]
[1718844489289,7.4104,134.95,134.85,22.1463]
[1718844489460,7.4111,134.94,134.85,22.1463]
[1718844490153,6.6129,135.0,134.86,0.17]
[1718844490368,7.4066,135.02,134.88,0.17]
[1718844490565,7.4066,135.02,134.89,23.0518]
[1718844490769,42.24504197,135.04,134.89,23.0518]
[1718844490770,27.4071,135.01,134.89,23.0518]
[1718844490971,20.0,135.01,134.89,23.0518]
[1718844491271,5.84912713,135.06,134.89,23.0518]
[1718844491272,18.5101,135.07,134.92,0.17]
[1718844491474,7.405,135.05,134.92,0.68]
[1718844491672,20.8957927,135.08,134.91,22.6681]
[1718844491876,18.5116,135.05,134.91,22.6681]
[1718844492167,7.4075,135.0,134.91,22.6681]
[1718844492669,7.4068,135.02,134.91,22.6681]
[1718844492868,0.34,135.01,134.91,22.6681]
[1718844493054,20.51,135.01,134.91,22.6681]
[1718844493255,20.0,135.04,134.92,0.17]
[1718844493466,27.4044,135.06,134.93,22.569]
[1718844493667,20.0,135.06,134.93,22.569]
[1718844493978,20.0,135.08,134.94,0.17]
[1718844494177,6.6372,135.09,134.93,22.569]
[1718844494361,7.4062,135.03,134.93,22.569]
[1718844494873,7.4053,135.04,134.93,22.569]
[1718844495170,7.4048,135.05,134.93,22.569]
[1718844495471,0.17,135.04,134.94,6.3024]
[1718844495662,20.0,135.05,134.94,6.3024]
[1718844495870,7.4058,135.03,134.94,6.3024]
[1718844496371,27.4051,135.05,134.94,6.3024]
[1718844496874,7.403,135.08,134.95,15.4166]
[1718844497168,7.4036,135.07,134.97,6.1521]
[1718844497376,7.4037,135.07,134.97,6.1521]
[1718844497753,27.90027156,135.12,134.98,15.6793]
[1718844497954,15.1026,135.15,135.0,0.17]
[1718844498149,7.4001,135.14,135.02,6.2837]
[1718844498455,4.8431927,135.16,135.02,6.2837]
[1718844498456,7.4019,135.1,135.02,6.2837]
[1718844498667,4.8431927,135.16,135.02,6.2837]
[1718844498867,18.4979,135.15,135.02,6.2837]
[1718844499071,4.8431927,135.16,135.02,6.2837]
[1718844499255,4.8431927,135.16,135.03,0.17]
[1718844499457,4.8431927,135.16,135.04,6.0582]
[1718844499671,4.8431927,135.16,135.04,21.3477]
[1718844500172,18.4997,135.14,135.04,21.3477]
[1718844500373,4.8431927,135.16,135.04,21.3477]
[1718844500957,7.3992,135.15,135.04,21.3477]
[1718844501462,20.0,135.14,135.04,21.3477]
[1718844502067,7.4009,135.12,135.04,21.3477]
[1718844502584,7.4027,135.09,135.04,21.3477]
[1718844502753,20.51,135.08,134.93,22.3723]
[1718844502962,0.17,135.07,134.94,20.0]
[1718844503171,0.34,135.07,134.93,22.3723]
[1718844503371,0.17,135.06,134.93,22.3723]
[1718844503577,0.17,135.06,134.93,16.1241]
[1718844503773,18.6788,135.08,134.95,16.4979]
[1718844503972,7.4055,135.04,134.95,16.4979]
[1718844504177,27.576,135.03,134.95,16.4979]
[1718844504371,0.17,135.02,134.95,16.4979]
[1718844504579,7.4074,135.0,134.95,16.4979]
[1718844504767,7.5769,135.01,134.95,16.4979]
[1718844504967,20.0,135.0,134.95,16.4979]
[1718844505374,20.17,135.01,134.95,16.4979]
[1718844505774,0.17,134.99,134.95,16.4979]
[1718844505983,0.17,134.99,134.94,6.4156]
[1718844505984,7.4088,134.98,134.94,6.4156]
[1718844506184,0.17,134.97,134.94,6.4156]
[1718844506677,7.4097,134.96,134.94,6.4156]
[1718844506882,7.5791,134.97,134.94,6.4156]
[1718844507571,27.5791,135.03,134.94,6.4156]
[1718844507779,0.68,135.02,134.94,6.4156]
[1718844507982,0.17,134.97,134.94,6.4156]
[1718844508178,0.68,134.97,134.91,15.1945]
[1718844508362,0.17,134.97,134.91,15.1945]
[1718844508572,0.51,134.98,134.91,15.1945]
[1718844508774,0.17,134.97,134.91,15.1945]
[1718844509175,0.17,134.96,134.91,15.1945]
[1718844509383,0.17,134.97,134.91,15.1945]
[1718844509776,27.5793,134.97,134.91,15.1945]
[1718844509978,0.34,134.96,134.91,15.1945]
[1718844510271,7.5793,134.97,134.91,15.1945]
[1718844510607,0.17,134.97,134.91,15.1945]
[1718844510778,27.7491,134.97,134.91,15.1945]
[1718844510970,20.0,134.99,134.91,15.1945]
[1718844511591,7.4085,134.98,134.91,15.1945]
[1718844511819,20.0,134.99,134.91,15.1945]
[1718844511820,19.5,134.99,134.91,15.1945]
[1718844511989,7.4068,135.02,134.91,15.1945]
[1718844512370,7.5791,135.03,134.93,6.595]
[1718844512569,7.74266978,135.07,134.93,6.595]
[1718844512770,7.4048,135.05,134.93,6.595]
[1718844512994,7.4048,135.05,134.94,20.0]
[1718844513180,7.4048,135.05,134.94,20.17]
[1718844513375,18.5074,135.09,134.96,16.5327]
[1718844513576,7.4042,135.06,134.97,6.1835]
[1718844513984,37.0069,135.11,134.97,6.1835]
[1718844514182,7.4063,135.02,134.97,6.1835]
[1718844514384,7.4046,135.05,134.97,6.1835]
[1718844514691,7.4043,135.06,134.97,6.1835]
[1718844514995,0.17,135.05,134.97,6.1835]
[1718844515288,0.34,135.06,134.97,6.1835]
[1718844515475,20.0,135.06,134.97,6.1835]
[1718844515676,7.4034,135.08,134.97,6.1835]
[1718844515872,7.4025,135.09,134.97,6.1835]
[1718844516073,27.4031,135.08,134.97,6.1835]
[1718844516498,20.0,135.08,134.97,6.1835]
[1718844516697,20.0,135.08,134.98,0.17]
[1718844516906,20.0,135.08,134.98,0.51]
[1718844517205,7.4037,135.07,134.97,6.1835]
[1718844517490,7.4021,135.1,134.98,20.0]
[1718844517795,18.5019,135.13,135.0,21.9877]
[1718844517796,20.0,135.09,135.0,21.9877]
[1718844518279,7.4025,135.09,135.0,21.9877]
[1718844518477,18.5019,135.13,135.0,21.9877]
[1718844518680,20.0,135.12,135.01,20.0]
[1718844518886,7.402,135.1,135.01,20.0]
[1718844519483,7.402,135.1,135.0,21.9877]
[1718844519793,7.4031,135.08,135.0,21.9877]
[1718844519971,27.5726,135.09,135.0,21.9877]
[1718844520178,7.5726,135.09,135.0,21.9877]
[1718844521104,20.0,135.12,135.0,21.9877]
[1718844521276,20.0,135.15,135.02,0.17]
[1718844521474,7.4001,135.14,135.02,0.17]
[1718844521675,27.3992,135.15,135.03,23.1957]
[1718844521878,7.3998,135.14,135.04,20.0]
[1718844522089,20.0,135.15,135.03,23.1957]
[1718844522287,7.4,135.14,135.03,23.1957]
[1718844522491,36.9895,135.18,135.03,23.1957]
[1718844522677,18.498,135.15,135.03,23.1957]
[1718844522882,7.401,135.12,135.03,23.1957]
[1718844523077,36.9895,135.18,135.03,23.1957]
[1718844523280,7.401,135.12,135.03,23.1957]
[1718844523610,0.17,135.11,135.03,23.1957]
[1718844524200,0.51,135.11,135.03,23.1957]
[1718844524580,7.9114,135.11,135.03,23.1957]
[1718844524902,20.0,135.1,135.03,23.1957]
[1718844525692,20.17,135.11,135.03,23.1957]
[1718844525897,20.0,135.11,135.03,23.1957]
[1718844526093,20.0,135.13,135.03,23.1957]
[1718844526291,27.3997,135.14,135.03,23.1957]
[1718844526499,20.0,135.14,135.03,23.1957]
[1718844526804,7.3986,135.16,135.04,22.6611]
[1718844527002,4.8431927,135.21,135.06,22.6611]
[1718844528489,45.17,135.2,135.06,22.6611]
[1718844528695,20.0,135.19,135.06,22.6611]
[1718844528894,0.17,135.18,135.06,22.6611]
[1718844529401,7.3994,135.15,135.06,22.6611]
[1718844529984,0.68,135.14,135.06,22.6611]
[1718844530308,7.401,135.12,135.06,22.6611]
[1718844531810,0.17,135.11,135.06,22.6611]
[1718844531988,7.4021,135.1,135.06,22.6611]
[1718844532306,0.17,135.09,135.06,22.6611]
[1718844532694,0.34,135.1,135.06,22.6611]
[1718844533007,20.0,135.11,135.06,22.6611]
[1718844533207,0.17,135.13,135.06,22.6611]
[1718844533411,18.4938,135.19,135.06,22.6611]
[1718844533593,7.399,135.16,135.06,22.6611]
[1718844533797,27.3993,135.15,135.06,22.6611]
[1718844533992,20.0,135.15,135.06,22.6611]
[1718844534198,27.3995,135.15,135.06,22.6611]
[1718844535291,20.0,135.15,135.06,22.6611]
[1718844535488,0.17,135.14,135.06,22.6611]
[1718844538207,20.0,135.15,135.06,22.6611]
[1718844538509,20.17,135.18,135.06,22.6611]
[1718844538700,0.17,135.17,135.07,22.5763]
[1718844539704,7.568,135.17,135.07,22.5763]
[1718844540099,27.3977,135.18,135.07,22.5763]
[1718844540294,18.491,135.21,135.09,22.611]
[1718844540295,7.3964,135.21,135.09,22.611]
[1718844540505,23.3324927,135.22,135.1,20.0]
[1718844540699,7.3976,135.18,135.09,22.611]
[1718844541494,7.3972,135.19,135.09,22.611]
[1718844541715,0.34,135.2,135.09,22.611]
[1718844542014,7.3948,135.23,135.12,6.8224]
[1718844542201,7.3945,135.24,135.13,15.3575]
[1718844542592,7.3929,135.27,135.15,15.3575]
[1718844542790,7.3929,135.27,135.16,6.2763]
[1718844542791,20.0,135.26,135.16,6.2763]
[1718844543086,19.5,135.26,135.17,15.9954]
[1718844543820,274.3761,135.31,135.18,6.3835]
[1718844543994,274.3761,135.31,135.19,16.1263]
[1718844544195,7.3911,135.3,135.19,16.1263]
[1718844544601,15.9954,135.34,135.2,6.3998]
[1718844544808,18.4707,135.35,135.21,20.0]
[1718844545096,7.73141205,135.35,135.22,22.9402]
[1718844545409,7.3894,135.33,135.23,20.0]
[1718844545588,255.9,135.37,135.23,20.0]
[1718844545792,18.472,135.34,135.23,20.0]
[1718844546015,7.3906,135.31,135.22,22.6002]
[1718844546311,7.3897,135.33,135.22,22.6002]
[1718844546838,7.3878,135.36,135.24,22.7457]
[1718844547017,20.0,135.35,135.24,22.7457]
[1718844547195,263.2871,135.37,135.25,20.17]
[1718844547393,7.3871,135.37,135.26,6.2552]
[1718844547699,7.3888,135.34,135.26,6.2552]
[1718844547893,18.4692,135.36,135.26,6.2552]
[1718844548102,7.3889,135.34,135.26,6.2552]
[1718844548408,7.5584,135.35,135.26,6.2552]
[1718844548613,0.17,135.34,135.26,6.2552]
[1718844548792,7.7289,135.34,135.26,6.2552]
[1718844548989,7.3903,135.32,135.26,6.2552]
[1718844549293,7.3902,135.32,135.26,6.2552]
[1718844549488,7.8993,135.33,135.26,6.2552]
[1718844549691,0.17,135.34,135.26,6.2552]
[1718844549914,0.17,135.33,135.26,6.2552]
[1718844550221,0.51,135.33,135.26,6.2552]
[1718844550400,7.3925,135.28,135.26,6.2552]
[1718844550594,7.3919,135.29,135.26,6.2552]
[1718844550805,0.17,135.3,135.26,6.2552]
[1718844551002,0.17,135.31,135.26,6.2552]
[1718844551319,0.34,135.31,135.26,6.2552]
[1718844551615,0.17,135.3,135.26,6.2552]
[1718844552109,20.0,135.32,135.26,6.2552]
[1718844552316,0.17,135.31,135.26,6.2552]
[1718844552494,20.51,135.32,135.26,6.2552]
[1718844553424,255.9,135.35,135.26,6.2552]
[1718844553605,7.3881,135.36,135.26,6.2552]
[1718844553924,7.3875,135.37,135.27,16.0433]
[1718844554298,18.4651,135.39,135.27,16.0433]
[1718844554616,7.3877,135.36,135.27,16.0433]
[1718844555299,7.3873,135.37,135.27,16.0433]
[1718844555501,7.3861,135.39,135.28,6.1098]
[1718844555705,255.9,135.41,135.31,16.2836]
[1718844555919,18.4583,135.44,135.31,16.2836]
[1718844556726,114.34491894,135.47,135.31,16.2836]
[1718844557018,22.1546,135.4,135.31,16.2836]
[1718844557202,7.3887,135.35,135.31,16.2836]
[1718844557399,100.0,135.39,135.3,6.1098]
[1718844557599,7.3904,135.31,135.27,22.3858]
[1718844558014,7.561,135.3,135.27,22.3858]
[1718844558518,0.17,135.3,135.27,22.3858]
[1718844558700,7.3915,135.29,135.27,22.3858]
[1718844559228,7.7312,135.3,135.27,22.3858]
[1718844559832,0.17,135.3,135.27,22.3858]
[1718844560122,0.17,135.3,135.23,6.4492]
[1718844560123,7.393,135.27,135.23,6.4492]
[1718844561229,7.7311,135.3,135.23,6.4492]
[1718844561404,6.5848,135.39,135.25,6.3522]
[1718844561812,7.3877,135.36,135.25,6.3522]
[1718844562132,6.5848,135.39,135.25,6.3522]
[1718844562507,7.3873,135.37,135.27,15.024]
[1718844563426,7.3878,135.36,135.27,15.024]
[1718844563632,7.3883,135.35,135.27,15.024]
[1718844564207,7.3879,135.36,135.27,15.024]
[1718844564408,0.17,135.35,135.27,15.024]
[1718844564624,7.5583,135.35,135.27,15.024]
[1718844564906,0.17,135.35,135.27,15.024]
[1718844565305,7.5582,135.35,135.27,15.024]
[1718844566648,0.17,135.35,135.27,15.024]
[1718844566836,20.34,135.36,135.27,15.024]
[1718844567127,20.17,135.36,135.28,6.1713]
[1718844567314,0.17,135.36,135.28,6.1713]
[1718844568135,19.68,135.37,135.28,6.1713]
[1718844568508,255.9,135.4,135.28,6.1713]
[1718844568719,255.9,135.4,135.3,6.6284]
[1718844569027,263.2855,135.4,135.3,6.6284]
[1718844569532,7.3861,135.39,135.3,6.6284]
[1718844569725,255.9,135.4,135.3,6.6284]
[1718844570129,7.3866,135.38,135.3,6.6284]
[1718844570634,0.51,135.39,135.3,6.6284]
[1718844570824,7.3877,135.36,135.3,6.6284]
[1718844571214,7.3874,135.37,135.3,6.6284]
[1718844571427,0.17,135.36,135.3,6.6284]
[1718844572020,7.5578,135.36,135.3,6.6284]
[1718844572226,0.17,135.36,135.3,6.6284]
[1718844572422,38.8098,135.36,135.3,6.6284]
[1718844572629,7.3892,135.34,135.3,6.6284]
[1718844572825,38.8098,135.36,135.3,6.6284]
[1718844573025,7.3891,135.34,135.29,16.4674]
[1718844573224,0.17,135.33,135.29,16.4674]
[1718844574542,0.34,135.33,135.29,16.4674]
[1718844574843,20.0,135.34,135.29,16.4674]
[1718844575154,7.3904,135.32,135.29,16.4674]
[1718844575323,0.17,135.33,135.29,16.4674]
[1718844575324,7.3893,135.33,135.29,16.4674]
[1718844575524,20.0,135.32,135.29,16.4674]
[1718844576238,7.8983,135.35,135.29,16.4674]
[1718844576423,20.0,135.34,135.29,16.4674]
[1718844577119,7.3895,135.33,135.29,16.4674]
[1718844577319,27.3891,135.34,135.29,16.4674]
[1718844577949,0.17,135.33,135.29,16.4674]
[1718844579422,27.7282,135.35,135.29,16.4674]
[1718844579635,0.17,135.34,135.29,16.4674]
[1718844581863,7.5589,135.34,135.29,16.4674]
[1718844582027,20.0,135.33,135.29,16.4674]
[1718844582220,27.3894,135.33,135.29,16.4674]
[1718844583935,0.34,135.32,135.29,16.4674]
[1718844584519,7.3907,135.31,135.29,16.4674]
[1718844585337,0.17,135.3,135.29,16.4674]
[1718844585539,20.34,135.3,135.26,16.3711]
[1718844585743,0.34,135.3,135.26,16.3711]
[1718844585925,7.3916,135.29,135.26,16.3711]
[1718844586236,0.34,135.3,135.26,16.3711]
[1718844586439,0.17,135.29,135.26,16.3711]
[1718844587246,20.0,135.3,135.26,16.3711]
[1718844587547,0.17,135.33,135.26,16.3711]
[1718844587548,0.17,135.31,135.26,16.3711]
[1718844587843,7.5605,135.31,135.26,16.3711]
[1718844588046,27.731,135.3,135.26,16.3711]
[1718844588263,7.731,135.3,135.26,16.3711]
[1718844589043,0.34,135.3,135.26,16.3711]
[1718844589252,20.34,135.3,135.26,16.3711]
[1718844589846,27.7309,135.3,135.26,16.3711]
[1718844590653,20.34,135.3,135.26,16.3711]
[1718844593346,20.17,135.3,135.26,16.3711]
[1718844593553,20.0,135.3,135.26,16.3711]
[1718844593762,20.17,135.31,135.26,16.3711]
[1718844594064,27.5604,135.31,135.26,16.3711]
[1718844595749,20.17,135.31,135.26,16.3711]
[1718844596848,27.3904,135.31,135.26,16.3711]
[1718844597049,7.7313,135.3,135.26,16.3711]
[1718844597249,0.17,135.29,135.23,6.5844]
[1718844597452,7.3929,135.27,135.23,6.5844]
[1718844597649,0.17,135.26,135.22,15.0576]
[1718844597849,7.3947,135.24,135.2,6.3623]
[1718844598366,27.3949,135.23,135.2,6.3623]
[1718844598749,20.0,135.23,135.2,6.3623]
[1718844599652,20.0,135.24,135.2,6.3623]
[1718844600457,0.17,135.23,135.2,6.3623]
[1718844600972,0.34,135.24,135.2,6.3623]
[1718844601264,7.395,135.23,135.2,6.3623]
[1718844601746,7.7344,135.24,135.2,6.3623]
[1718844601942,20.0,135.23,135.2,6.3623]
[1718844602349,20.34,135.24,135.2,6.3623]
[1718844602874,20.0,135.23,135.2,6.3623]
[1718844603750,0.17,135.24,135.2,6.3623]
[1718844603951,20.34,135.25,135.2,6.3623]
[1718844604162,0.17,135.24,135.2,6.3623]
[1718844604363,7.3948,135.23,135.18,15.0576]
[1718844604567,0.17,135.22,135.18,15.0576]
[1718844605549,34.0343,135.3,135.18,15.0576]
[1718844605761,0.17,135.27,135.18,15.0576]
[1718844606164,18.6527,135.27,135.18,15.0576]
[1718844606358,7.3951,135.23,135.18,15.0576]
[1718844606649,0.17,135.22,135.18,15.0576]
[1718844606854,20.17,135.22,135.16,6.5434]
[1718844607071,7.3968,135.2,135.16,6.5434]
[1718844607257,20.17,135.19,135.16,6.5434]
[1718844607969,20.0,135.18,135.16,6.5434]
[1718844608159,7.567,135.19,135.15,16.5924]
[1718844608361,20.0,135.18,135.15,16.5924]
[1718844608682,27.3976,135.18,135.15,16.5924]
[1718844609879,20.0,135.18,135.15,16.5924]
[1718844610051,15.10043114,135.23,135.15,16.5924]
[1718844610261,7.397,135.19,135.15,16.5924]
[1718844610467,27.3976,135.18,135.15,16.5924]
[1718844611070,20.0,135.18,135.15,16.5924]
[1718844611567,20.0,135.2,135.15,16.5924]
[1718844611876,7.3948,135.23,135.15,16.5924]
[1718844611877,20.0,135.22,135.15,16.5924]
[1718844612756,26.1900444,135.27,135.15,16.5924]
[1718844612757,20.0,135.23,135.15,16.5924]
[1718844612953,7.3951,135.23,135.15,16.5924]